Cogmind - Beta 16 @@@ ROGUE MODE // 2025.11.10 @ 11:53:40 Player: FR-13D Result: Destroyed by AG-27045 with Assembled Focal Cannon Performance ------------- Evolutions (3) 1500 Regions Visited (12) 2400 Robots Destroyed (105) 525 Value Destroyed (2976) 2976 Prototype IDs (39) 780 Alien Tech Used (0) 0 Bonus (1639) 1639 TOTAL SCORE: 9820 Bonus ------- High Alert Combat Kills 11 Follower Combat Kills 28 Aligned with FarCom 300 Met Imprinter 300 Destroyed Z-Imprinter 1000 Cogmind --------- Core Integrity 0/700 Matter 300/300 Energy 90/100 System Corruption 0% Temperature Cool (6) Movement Hovering (140) Ox1 Location -7/Deep Caves Parts ------- > --- POWER (2) -------- Zionite Light DM Reactor > --- PROPULSION (4) --- Zionite Composite Leg I Zionite Glidesys I > --- UTILITY (5) ------ Improved Signal Interpreter Advanced Targeting Computer Improved Reaction Control System Phase Shifter Phase Shifter > --- WEAPON (2) ------- Longsword +1 > --- INVENTORY (5) ---- Zionite Light DM Reactor Hover Unit Zionite Light Carapace Trap Extractor (0/4) Grenade Launcher Peak State ------------ > --- POWER ------------ Zionite Light DM Reactor Zionite Light DM Reactor > --- PROPULSION ------- Light Treads Zionite Composite Leg I Zionite Glidesys I Zionite Glidesys I > --- UTILITY ---------- Experimental Heat Sink Improved Signal Interpreter Advanced Targeting Computer Zionite Light Carapace Insulated Plating > --- WEAPON ----------- Zionite Laser-S Longsword +1 > --- INVENTORY -------- Phase Shifter Gauss Cannon Grenade Launcher [Rating: 72] Favorites ----------- Power Cooled Ion Engine Engine Cooled Ion Engine Reactor Zionite Light DM Reactor Propulsion Light Treads Treads Light Treads Leg Zionite Composite Leg I Wheel Wheel Hover Unit Zionite Glidesys I Utility Huge Storage Unit Device Improved Heat Sink Storage Huge Storage Unit Processor Advanced Targeting Computer Protection Insulated Plating Weapon Autogun Energy Gun Heavy Laser Ballistic Gun Autogun Ballistic Cannon Light Cannon Launcher Advanced EMP Blaster Slashing Weapon Longsword +1 Special Melee Weapon Datajack Build | -11 -10 -10 -9 -9 -9 -8 -8 -7 -7 -7 -7 -7 ------- Run | Yrd Mat Min Mat Min Exi Min Mat Fac Low Low Zio Dee Slots Evolved 6 | . . . 2 . . . 2 2 . . . . Power 1 | . . . . . . . . 1 . . . . Propulsion 2 | . . . . . . . 1 1 . . . . Utility 3 | . . . 2 . . . 1 . . . . . Weapon . | . . . . . . . . . . . . . Parts Attached 123 | 7 8 9 33 1 . . 10 21 3 . 2 29 Power 14 | 1 1 2 4 . . . 1 2 . . . 3 Engine 11 | 1 1 2 4 . . . 1 2 . . . . Core . | . . . . . . . . . . . . . Reactor 3 | . . . . . . . . . . . . 3 Propulsion 37 | 2 4 2 5 . . . 2 10 1 . . 11 Treads 23 | . 3 1 4 . . . 2 10 1 . . 2 Leg 2 | . . . . . . . . . . . . 2 Wheel 5 | 2 1 1 1 . . . . . . . . . Hover 7 | . . . . . . . . . . . . 7 Flight . | . . . . . . . . . . . . . Utility 43 | 2 2 1 16 . . . 4 4 1 . 2 11 Device 20 | 1 . 1 6 . . . 1 3 1 . 1 6 Storage 6 | 1 2 . 2 . . . . . . . . 1 Processor 3 | . . . 1 . . . 2 . . . . . Hackware . | . . . . . . . . . . . . . Protection 14 | . . . 7 . . . 1 1 . . 1 4 Artifact . | . . . . . . . . . . . . . Weapon 29 | 2 1 4 8 1 . . 3 5 1 . . 4 Energy Gun 11 | 1 1 . 4 1 . . 1 1 . . . 2 Energy Cannon . | . . . . . . . . . . . . . Ballistic Gun 10 | 1 . 3 3 . . . . 2 1 . . . Ballistic Cannon 3 | . . 1 . . . . . 1 . . . 1 Launcher 2 | . . . . . . . 1 . . . . 1 Special Weapon . | . . . . . . . . . . . . . Impact Weapon . | . . . . . . . . . . . . . Slashing Weapon 2 | . . . 1 . . . . 1 . . . . Piercing Weapon . | . . . . . . . . . . . . . Special Melee Weapon 1 | . . . . . . . 1 . . . . . Unidentified Prototypes 12 | . . . 1 . . . 1 . . . 1 9 Parts Lost 38 | . 1 3 5 . . . . 1 . . . 28 Power 5 | . . 1 1 . . . . . . . . 3 Propulsion 15 | . . . . . . . . 1 . . . 14 Utility 10 | . . . 2 . . . . . . . . 8 Weapon 8 | . 1 2 2 . . . . . . . . 3 Highest Loss Streak 7 | . 1 2 3 . . . . 1 . . . 7 To Critical Strikes . | . . . . . . . . . . . . . Average Backups 20 | 3 9 14 21 25 25 25 24 24 25 25 24 15 Power 3 | . 2 2 4 5 5 5 4 3 3 3 3 2 Propulsion 3 | 1 3 4 4 5 5 5 4 3 3 3 3 . Utility 7 | . . 3 7 7 8 8 8 10 12 12 11 7 Weapon 5 | 1 3 4 6 7 7 7 7 7 6 6 6 4 Tool/Special . | . . . . . . . . . . . . . Unused Backups 29 | 1 1 2 7 2 . . 4 1 . . 1 10 Power 7 | . . . 4 . . . . . . . . 3 Propulsion 1 | . . . . . . . . . . . . 1 Utility 10 | . . . 3 . . . 2 . . . 1 4 Weapon 11 | 1 1 2 . 2 . . 2 1 . . . 2 Tool/Special . | . . . . . . . . . . . . . Average Slot Usage (%) 97 | . 100 99 97 100 100 100 98 99 100 100 99 83 Engine 11 | . 14 13 10 11 11 11 9 14 15 15 15 3 Treads 20 | . 13 16 8 22 22 22 26 30 30 30 30 14 Wheel 4 | . 14 11 13 . . . . . . . . . Device 10 | . 14 14 13 . . . 7 10 14 15 10 9 Storage 9 | . 14 14 11 11 11 11 9 7 7 7 7 4 Processor 10 | . . . 7 11 11 11 15 15 15 15 15 15 Protection 7 | . . . 10 22 22 22 12 3 . . 3 5 Energy Gun 8 | . 15 4 9 11 11 11 8 7 7 7 7 4 Ballistic Gun 8 | . 12 21 9 11 11 11 8 6 6 7 7 1 Slashing Weapon 1 | . . . 1 . . . . . . . . 4 Peak Build Rating 72 | 7 8 9 21 22 22 22 30 46 46 44 49 72 Average Rating 28 | 6 7 8 16 21 22 22 27 35 43 44 44 49 On Entrance 24 | . 7 8 9 21 22 22 22 29 46 44 44 44 Avg Prop Armor Cover (%) 7 | . . . 3 . . . . . . . . 7 Naked Turns . | . . . . . . . . . . . . . Heaviest Build 135 | 13 50 50 100 100 100 100 105 110 110 107 135 116 Greatest Support 90 | 20 40 40 40 40 40 40 60 82 90 90 90 90 Greatest Overweight (x) 9 | 3 2 2 9 2 2 2 2 1 1 1 1 5 Average Overweight (x) 1 | . 1 1 3 2 2 2 1 1 1 1 1 . Largest Inventory Capacity 25 | 8 20 20 25 25 25 25 25 25 25 25 25 25 Average Capacity 22 | 7 18 20 24 25 25 25 25 25 25 25 25 17 Most Carried 25 | 6 13 20 25 25 25 25 25 25 25 25 25 25 Average Carried 21 | 3 10 18 23 24 25 25 24 24 24 25 24 15 Final Capacity 25 | 8 20 20 25 25 25 25 25 25 25 25 25 5 Final Carried 25 | 6 13 20 25 25 25 25 25 25 25 25 25 5 Class Distribution -------------------- 44% | Mutant 40% | Scavenger-Mutant 15% | Trapper-Mutant Dominant Class ---------------- Mutant | -10/Materials Scavenger-Mutant | -10/Mines Scavenger-Mutant | -9/Materials Mutant | -9/Mines Mutant | -9/Exiles Mutant | -8/Mines Mutant | -8/Materials Scavenger-Mutant | -7/Factory Trapper-Mutant | -7/Lower Caves Mutant | -7/Lower Caves Mutant | -7/Zion Scavenger-Mutant | -7/Deep Caves Resources | -11 -10 -10 -9 -9 -9 -8 -8 -7 -7 -7 -7 -7 ----------- Run | Yrd Mat Min Mat Min Exi Min Mat Fac Low Low Zio Dee Matter Collected 3792 | 345 183 312 1056 132 . 8 193 611 365 . 33 554 Remotely . | . . . . . . . . . . . . . Salvage Created 4210 | 207 258 183 1394 46 . 27 291 901 242 . . 661 Parts 256 | 17 21 19 80 4 . 5 20 45 8 . . 37 Haulers Intercepted 8 | . 1 . 3 . . . 1 3 . . . . Recyclers Shooed 4 | . 1 . 1 . . . . 2 . . . . Parts Field Recycled . | . . . . . . . . . . . . . Retrieved Matter . | . . . . . . . . . . . . . Parts Self-Destructed 8 | . . . . . . . . . 8 . . . Prevented . | . . . . . . . . . . . . . Parts Restored . | . . . . . . . . . . . . . Kills | -11 -10 -10 -9 -9 -9 -8 -8 -7 -7 -7 -7 -7 ------- Run | Yrd Mat Min Mat Min Exi Min Mat Fac Low Low Zio Dee Combat Hostiles Destroyed 79 | . 7 7 26 3 . 2 4 12 5 . . 13 Melee 12 | . . . . . . . . 3 1 . . 8 Guns 58 | . 6 6 21 3 . 2 4 9 4 . . 3 Cannons 5 | . . 1 4 . . . . . . . . . AOE 3 | . 1 . 1 . . . . . . . . 1 Classes Destroyed 16 | 3 3 2 2 . . . 1 1 2 . . 2 Worker 5 | 1 . 1 1 . . . 1 1 . . . . Builder 2 | . . 1 1 . . . . . . . . . Tunneler 6 | 5 . 1 . . . . . . . . . . Hauler 8 | . 1 . 3 . . . 1 3 . . . . Recycler 6 | 1 . . 3 . . . . 2 . . . . Mechanic 1 | . . . . . . . 1 . . . . . Operator 1 | . . . 1 . . . . . . . . . Swarmer 18 | . 3 6 4 3 . 2 . . . . . . Grunt 29 | . 4 . 15 . . . 2 5 3 . . . Brawler 1 | . . . . . . . . . 1 . . . Duelist 2 | . . . 1 . . . 1 . . . . . Sentry 11 | . . 1 6 . . . 1 3 . . . . Hunter 1 | . . . . . . . . . 1 . . . Programmer 4 | . . . . . . . . 4 . . . . Z-Technician 5 | . . . . . . . . . . . . 5 Z-Light 9 | . . . . . . . . . . . . 9 Assembled 3 | . . . . . . . . . . . . 3 Best Kill Streak 6 | 5 3 3 6 3 . 2 3 3 4 . . 4 Combat Bots Only 4 | . 3 3 4 3 . 2 1 2 4 . . 4 Max Kills in Single Turn 4 | 1 1 1 4 1 . 2 1 1 1 . . 1 Gunslinging 1 | . . . . . . 1 . . . . . . Exploded 1 | . 1 . 1 . . . . . . . . 1 Melee 1 | . . . . . . . . 1 1 . . 1 Uniques/NPCs Destroyed 1 | . . . . . . . . . . . . 1 Z-Imprinter (-7/Deep Caves) Combat | -11 -10 -10 -9 -9 -9 -8 -8 -7 -7 -7 -7 -7 -------- Run | Yrd Mat Min Mat Min Exi Min Mat Fac Low Low Zio Dee Hostile Shots Fired 606 | . 28 41 131 6 . 5 30 177 28 . . 160 Missed 190 | . 9 10 39 . . 4 14 64 7 . . 43 Hits 416 | . 19 31 92 6 . 1 16 113 21 . . 117 Melee 4 | . . . 1 . . . . . 1 . . 2 Projectile 412 | . 19 31 91 6 . 1 16 113 20 . . 115 AOE 5 | . . 5 . . . . . . . . . . Critical Strikes 4 | . . 1 1 . . . 1 1 . . . . Damage Taken 7433 | . 243 435 1259 50 . 6 211 1257 318 . . 3654 Core 1068 | . 30 122 179 . . . . 82 30 . . 625 Absorbed by Shields . | . . . . . . . . . . . . . Ignored by Resistances 111 | . . . . . . . 30 41 34 . . 6 Regen/Repaired (Parts) 259 | . 65 . 111 . . . . . . . 83 . Core Remaining (%) 73 | 100 . 39 . . . 55 100 . . . . . Volleys Fired 314 | 25 24 24 105 7 . 2 21 57 14 . . 35 Largest 2 | 1 2 2 2 2 . 2 2 2 2 . . 2 Hottest 109 | 20 90 70 95 88 . 88 88 92 94 . . 109 Shots Fired 536 | 25 45 47 184 14 . 4 42 113 22 . . 40 Gun 499 | 25 45 41 166 14 . 4 42 113 22 . . 27 Cannon 34 | . . 6 18 . . . . . . . . 10 Launcher 3 | . . . . . . . . . . . . 3 Special . | . . . . . . . . . . . . . Kinetic 288 | 25 14 35 103 7 . 2 21 57 14 . . 10 Thermal 185 | . 22 12 30 7 . 2 21 56 8 . . 27 Explosive 3 | . . . . . . . . . . . . 3 Electromagnetic 60 | . 9 . 51 . . . . . . . . . Robot Hit Streak 26 | 5 16 13 14 5 . 2 11 26 14 . . 9 Robot Miss Streak 5 | 5 4 2 4 1 . 2 2 2 2 . . 3 Penetration Max . | . . . . . . . . . . . . . Secondary Targets 3 | . . 1 1 . . 1 . . . . . . Max Gunslinging Chain 1 | . . 1 1 . . 1 . . . . . . Shots Hit Robots 421 | 15 29 31 130 9 . 2 35 94 20 . . 56 Core Hits 184 | 7 14 13 58 3 . 2 16 32 10 . . 29 Critical Kills . | . . . . . . . . . . . . . Critical Parts Destroyed 1 | . . . . . . . 1 . . . . . Critical Strikes 21 | . 1 3 2 . . . 4 5 . . . 6 Burn 8 | . . 1 . . . . 3 4 . . . . Destroy 1 | . . . . . . . 1 . . . . . Blast 5 | . . 2 2 . . . . . . . . 1 Corrupt 1 | . 1 . . . . . . . . . . . Sever 6 | . . . . . . . . 1 . . . 5 Melee Attacks 76 | . . . 17 . . . . 14 1 . . 44 Impact . | . . . . . . . . . . . . . Slashing 76 | . . . 17 . . . . 14 1 . . 44 Piercing . | . . . . . . . . . . . . . Sneak Attacks 12 | . . . 3 . . . . 2 1 . . 6 Combat Hostiles 1 | . . . . . . . . . 1 . . . Follow-up Attacks . | . . . . . . . . . . . . . Damage Inflicted 9049 | 209 426 366 2142 171 . 31 547 2079 432 . . 2646 Guns 5280 | 209 358 276 1450 171 . 31 547 1587 338 . . 313 Cannons 517 | . . 90 206 . . . . . . . . 221 Explosions 687 | . 67 . 281 . . . . . . . . 339 Melee 2495 | . . . 186 . . . . 442 94 . . 1773 Ramming 70 | . 1 . 19 . . . . 50 . . . . Kinetic 2805 | 209 79 259 751 100 . 17 267 700 202 . . 221 Thermal 2712 | . 265 107 639 71 . 14 280 887 136 . . 313 Explosive 339 | . . . . . . . . . . . . 339 Electromagnetic 628 | . 81 . 547 . . . . . . . . . Impact . | . . . . . . . . . . . . . Slashing 2495 | . . . 186 . . . . 442 94 . . 1773 Piercing . | . . . . . . . . . . . . . Highest Corruption 3 | . . . . . . . . 3 . . . . Average Corruption 2 | . . . . . . . . 2 . . . . Corruption Purged 4 | . . . . . . . . 4 . . . . Corruption Blocked . | . . . . . . . . . . . . . Effects 10 | . . . . . . . . 10 . . . . Message Errors 3 | . . . . . . . . 3 . . . . Matter Fused 2 | . . . . . . . . 2 . . . . Energy Discharges 1 | . . . . . . . . 1 . . . . Data Loss (minor) 2 | . . . . . . . . 2 . . . . Data Loss (major) 2 | . . . . . . . . 2 . . . . Overload Shots . | . . . . . . . . . . . . . Overflow Damage 382 | . 20 6 59 . . . . . . . . 297 Projectiles 6 | . . 6 . . . . . . . . . . Explosions 48 | . 20 . 28 . . . . . . . . . Melee 328 | . . . 31 . . . . . . . . 297 Knockbacks 2 | . . . 2 . . . . . . . . . Impact . | . . . . . . . . . . . . . Kinetic 1 | . . . 1 . . . . . . . . . Secondary 1 | . . . 1 . . . . . . . . . Self-Inflicted Damage 131 | . 38 . 93 . . . . . . . . . Shots 3 | . 1 . 2 . . . . . . . . . Rammed 12 | . 1 . 3 . . . . 8 . . . . Targets Rammed 12 | . 1 . 3 . . . . 8 . . . . Kicked . | . . . . . . . . . . . . . Crushed . | . . . . . . . . . . . . . Highest Temperature 381 | . 228 63 249 173 . 111 53 40 381 . . 268 Average Temperature 69 | . 69 22 49 96 . 59 24 9 208 . . 110 Received Heat Transfer 2067 | . 69 45 438 . . . 153 294 180 . . 888 Effects 3 | . . . . . . . . . 3 . . . Shutdowns 1 | . . . . . . . . . 1 . . . Energy Bleed 1 | . . . . . . . . . 1 . . . Matter Decay 1 | . . . . . . . . . 1 . . . Siege Activations . | . . . . . . . . . . . . . Martial Activations . | . . . . . . . . . . . . . Shielding Activations . | . . . . . . . . . . . . . Robots Disrupted . | . . . . . . . . . . . . . Combat Hostiles . | . . . . . . . . . . . . . Robots Corrupted . | . . . . . . . . . . . . . Combat Hostiles . | . . . . . . . . . . . . . Parts Fried 2 | . . . 2 . . . . . . . . . Impact Corruptions . | . . . . . . . . . . . . . Robots Melted 1 | . . . . . . . . . . . . 1 Combat Hostiles 1 | . . . . . . . . . . . . 1 Parts Melted 10 | . 1 2 . . . 1 . 6 . . . . Heat Transferred 5896 | . 692 370 1014 148 . 37 925 1961 259 . . 490 Parts Sabotaged . | . . . . . . . . . . . . . Parts Stolen . | . . . . . . . . . . . . . Parts Stripped . | . . . . . . . . . . . . . Power Chain Reactions 1 | . 1 . . . . . . . . . . . Alert | -11 -10 -10 -9 -9 -9 -8 -8 -7 -7 -7 -7 -7 ------- Run | Yrd Mat Min Mat Min Exi Min Mat Fac Low Low Zio Dee Maximum Alert Level 2 | . . . 2 . . . . . . . . . Low Security (%) 92 | 100 100 100 74 100 . 100 100 100 . . . . Level 1 6 | . . . 23 . . . . . . . . . Level 2 . | . . . 2 . . . . . . . . . Level 3 . | . . . . . . . . . . . . . Level 4 . | . . . . . . . . . . . . . Level 5 . | . . . . . . . . . . . . . High Security . | . . . . . . . . . . . . . Max Security . | . . . . . . . . . . . . . Peak Influence 405 | 10 60 115 405 147 . 50 58 88 . . . . Initial 147 | . . 1 . 147 . . . 4 . . . . Average 58 | 1 11 13 156 44 . 13 8 24 . . . . Influence Increases 2340 | 35 192 245 962 173 . 50 148 415 120 . . . Destroy 0b10 Robot/C 1400 | . 140 140 520 140 . 40 80 240 100 . . . Destroy 0b10 Robot/NC 145 | 35 5 15 45 . . . 15 30 . . . . Destroy Leader 346 | . 32 30 126 20 . 10 22 86 20 . . . Allied During Kill 13 | . . . . 13 . . . . . . . . Successful Hack 114 | . 10 . 52 . . . 16 36 . . . . Disable Machine 120 | . . . 105 . . . . 15 . . . . Destroy Structure 67 | . 5 . 54 . . . . 8 . . . . Lose Combat Pursuer 135 | . . 60 60 . . . 15 . . . . . Influence Decreases 2340 | 35 188 249 585 550 . 50 138 373 172 . . . Entered New Map 259 | . . 3 . 230 . . . 6 20 . . . Time Decay 1961 | 35 178 226 545 280 . 50 138 357 152 . . . Lost Part 80 | . 10 20 40 . . . . 10 . . . . Lost Ally 40 | . . . . 40 . . . . . . . . Squads Dispatched 8 | . 1 . 2 . . . . 5 . . . . Investigation 1 | . . . 1 . . . . . . . . . Extermination 4 | . . . . . . . . 4 . . . . Reinforcement 3 | . 1 . 1 . . . . 1 . . . . Assault . | . . . . . . . . . . . . . Garrison . | . . . . . . . . . . . . . Intercept . | . . . . . . . . . . . . . Searches Triggered . | . . . . . . . . . . . . . Construction Impeded . | . . . . . . . . . . . . . Haulers Reinforced 1 | . . . . . . . . 1 . . . . Active Scanning Responses . | . . . . . . . . . . . . . Cargo Convoy Interrupts . | . . . . . . . . . . . . . Stealth | -11 -10 -10 -9 -9 -9 -8 -8 -7 -7 -7 -7 -7 --------- Run | Yrd Mat Min Mat Min Exi Min Mat Fac Low Low Zio Dee Distress Signals 4 | . . . 3 . . . . 1 . . . . Communications Jammed . | . . . . . . . . . . . . . Distress Signals . | . . . . . . . . . . . . . Times Spotted 135 | . 14 11 40 9 . 3 14 24 4 . . 16 Peak Tracking Total 5 | . 4 4 4 3 . 3 3 3 4 . . 5 Tactical Retreats 8 | . . 2 4 . . . 1 . . . . 1 ECM-based Alert Blocks 1 | . . . 1 . . . . . . . . . Traps | -11 -10 -10 -9 -9 -9 -8 -8 -7 -7 -7 -7 -7 ------- Run | Yrd Mat Min Mat Min Exi Min Mat Fac Low Low Zio Dee Traps Triggered 3 | . . . . . . . . 3 . . . . Indirectly . | . . . . . . . . . . . . . Trap Hack Attempts 63 | . . . . . . . 18 45 . . . . Triggered . | . . . . . . . . . . . . . Disarmed 7 | . 4 . 1 . . . . 2 . . . . Reprogrammed 7 | . . . . . . . 3 4 . . . . Reused 1 | . . . . . . . . . 1 . . . Traps Extracted 4 | . . . . . . . 3 . 1 . . . Installed 11 | . . . . . . . . . 4 . . 7 Triggered 1 | . . . . . . . . . 1 . . . Fabricated Traps 3 | . . . . . . . . . . . 3 . Most Traps Carried 8 | . . 5 5 5 5 5 8 8 8 5 7 7 Machines | -11 -10 -10 -9 -9 -9 -8 -8 -7 -7 -7 -7 -7 ---------- Run | Yrd Mat Min Mat Min Exi Min Mat Fac Low Low Zio Dee Machines Disabled 9 | . . . 7 . . . . 1 . . . 1 Max in Single Turn 2 | . . . 2 . . . . 1 . . . 1 Machines Repaired . | . . . . . . . . . . . . . Machines Dismantled . | . . . . . . . . . . . . . Machines Sabotaged . | . . . . . . . . . . . . . Overloaded Fab Kills . | . . . . . . . . . . . . . Hacking | -11 -10 -10 -9 -9 -9 -8 -8 -7 -7 -7 -7 -7 --------- Run | Yrd Mat Min Mat Min Exi Min Mat Fac Low Low Zio Dee Machines Accessed 21 | . 4 . 8 . 2 . 5 2 . . . . Terminals 12 | . 3 . 5 . . . 4 . . . . . Fabricators . | . . . . . . . . . . . . . Repair Stations 4 | . 1 . 2 . . . 1 . . . . . Recycling Units 1 | . . . . . . . . 1 . . . . Scanalyzers 2 | . . . 1 . . . . 1 . . . . Garrison Access . | . . . . . . . . . . . . . Total Hacks 53 | . 11 . 22 . 2 . 12 6 . . . . Successful 29 | . 6 . 11 . 2 . 7 3 . . . . Failed 22 | . 5 . 10 . . . 5 2 . . . . Catastrophic 3 | . 2 . . . . . . 1 . . . . Database Lockouts 2 | . . . 1 . . . . 1 . . . . Manual 31 | . 8 . 10 . 1 . 5 2 . . 5 . Terminals 32 | . 7 . 16 . . . 9 . . . . . Fabricators . | . . . . . . . . . . . . . Repair Stations 12 | . 4 . 5 . . . 3 . . . . . Recycling Units 2 | . . . . . . . . 2 . . . . Scanalyzers 5 | . . . 1 . . . . 4 . . . . Garrison Access . | . . . . . . . . . . . . . Terminal Hacks 13 | . 3 . 5 . 2 . 3 . . . . . Record 2 | . . . 1 . 1 . . . . . . . Robot Analysis 4 | . 2 . 1 . . . 1 . . . . . Prototype ID Bank 2 | . . . . . . . 2 . . . . . Branch Access Points 1 | . . . 1 . . . . . . . . . Disarm Traps 2 | . 1 . 1 . . . . . . . . . Patrol Status 1 | . . . 1 . . . . . . . . . Proto ID Catalog 1 | . . . . . 1 . . . . . . . Fabricator Hacks . | . . . . . . . . . . . . . Repair Station Hacks 7 | . 2 . 4 . . . 1 . . . . . Scan Component 4 | . 1 . 2 . . . 1 . . . . . Repair 3 | . 1 . 2 . . . . . . . . . Recycling Unit Hacks . | . . . . . . . . . . . . . Scanalyzer 2 | . . . . . . . . 2 . . . . Retrieve Study 2 | . . . . . . . . 2 . . . . Garrison Access Hacks . | . . . . . . . . . . . . . Unauthorized Hacks 7 | . 1 . 2 . . . 3 1 . . . . Terminals 6 | . 1 . 2 . . . 3 . . . . . Botnet 6 | . 1 . 2 . . . 3 . . . . . Fabricators . | . . . . . . . . . . . . . Repair Stations . | . . . . . . . . . . . . . Recycling Units 1 | . . . . . . . . 1 . . . . Reject 1 | . . . . . . . . 1 . . . . Scanalyzers . | . . . . . . . . . . . . . Garrison Access . | . . . . . . . . . . . . . Data Cores Recovered . | . . . . . . . . . . . . . Used . | . . . . . . . . . . . . . Hacking Detections 15 | . 4 . 8 . . . 3 . . . . . Full Trace Events 1 | . . . 1 . . . . . . . . . Feedback Events . | . . . . . . . . . . . . . Feedback Blocked . | . . . . . . . . . . . . . Robot Schematics Acquired 2 | . . . . . . . . . . . 2 . Robots Built . | . . . . . . . . . . . . . Authchips . | . . . . . . . . . . . . . Time . | . . . . . . . . . . . . . Total Robot Build Rating . | . . . . . . . . . . . . . Part Schematics Acquired 15 | . . . . . . . . . . . 15 . Parts Built . | . . . . . . . . . . . . . Authchips . | . . . . . . . . . . . . . Time . | . . . . . . . . . . . . . Total Part Build Rating . | . . . . . . . . . . . . . Part Studies Acquired 2 | . . . . . . . . 2 . . . . Parts Repaired 3 | . 1 . 2 . . . . . . . . . Time 77 | . 26 . 51 . . . . . . . . . Parts Recycled . | . . . . . . . . . . . . . Recycled Matter . | . . . . . . . . . . . . . Retrieved Matter . | . . . . . . . . . . . . . Retrieved Components . | . . . . . . . . . . . . . Parts Scanalyzed . | . . . . . . . . . . . . . Part Schematics Acquired . | . . . . . . . . . . . . . Parts Damaged . | . . . . . . . . . . . . . Bothacking | -11 -10 -10 -9 -9 -9 -8 -8 -7 -7 -7 -7 -7 ------------ Run | Yrd Mat Min Mat Min Exi Min Mat Fac Low Low Zio Dee Used RIF Installer . | . . . . . . . . . . . . . Robots Hacked . | . . . . . . . . . . . . . Non-combat . | . . . . . . . . . . . . . Combat . | . . . . . . . . . . . . . Robot Hacks Applied . | . . . . . . . . . . . . . Relay Couplers Released . | . . . . . . . . . . . . . Fabnet Peak Effective % . | . . . . . . . . . . . . . Robots Rewired . | . . . . . . . . . . . . . Allies Hacked . | . . . . . . . . . . . . . Hacks Repelled . | . . . . . . . . . . . . . Allies | -11 -10 -10 -9 -9 -9 -8 -8 -7 -7 -7 -7 -7 -------- Run | Yrd Mat Min Mat Min Exi Min Mat Fac Low Low Zio Dee Total Allies 4 | . . . . 4 . . . . . . . . Largest Group 3 | . . . . 3 1 . . . . . . . Highest-Rated Group 40 | . . . . 40 31 . . . . . . . Highest-Rated Ally 31 | . . . . 31 31 . . . . . . . Total Orders . | . . . . . . . . . . . . . Ally Attacks 12 | . . . . 12 . . . . . . . . Total Damage 102 | . . . . 102 . . . . . . . . Kills 4 | . . . . 4 . . . . . . . . Allies Corrupted . | . . . . . . . . . . . . . Allies Melted . | . . . . . . . . . . . . . Intel | -11 -10 -10 -9 -9 -9 -8 -8 -7 -7 -7 -7 -7 ------- Run | Yrd Mat Min Mat Min Exi Min Mat Fac Low Low Zio Dee Active Infowar (turns) 7098 | 103 811 1458 1140 . . . . 113 665 375 1397 1036 Sensors 3775 | . . . 320 . . . . . 647 375 1397 1036 Seismic 3162 | 103 811 1458 790 . . . . . . . . . Jamming 131 | . . . . . . . . 113 18 . . . ECM 30 | . . . 30 . . . . . . . . . Robot Analysis Total 4 | . 2 . 1 . . . 1 . . . . . Derelict Logs Recovered 4 | . . 1 . 1 . . . . 1 1 . . Drone Launches . | . . . . . . . . . . . . . Drone Recoveries . | . . . . . . . . . . . . . Exploration | -11 -10 -10 -9 -9 -9 -8 -8 -7 -7 -7 -7 -7 ------------- Run | Yrd Mat Min Mat Min Exi Min Mat Fac Low Low Zio Dee Turns Passed 15140 | 184 811 1458 2723 987 745 202 980 2358 729 375 1555 2033 Spaces Moved 6727 | 141 464 831 1197 299 233 62 355 843 328 183 714 1077 Core 13 | 13 . . . . . . . . . . . . Treads 4150 | . 109 321 221 299 233 62 355 843 328 183 714 482 Legs 235 | . . . . . . . . . . . . 235 Wheels 1969 | 128 355 510 976 . . . . . . . . . Hover 360 | . . . . . . . . . . . . 360 Flight . | . . . . . . . . . . . . . Fastest Speed 50 | 50 80 110 110 320 320 320 240 196 196 206 206 62 Average Speed 193 | 81 131 160 171 320 320 320 243 225 205 206 206 163 Slowest Speed 480 | 200 240 240 480 320 320 320 320 240 206 206 206 360 Overloaded Moves . | . . . . . . . . . . . . . Propulsion Burnouts . | . . . . . . . . . . . . . Robots Hopped . | . . . . . . . . . . . . . Potential Cave-ins . | . . . . . . . . . . . . . Cave-ins Triggered . | . . . . . . . . . . . . . Exploration Rate (%) 51 | 5 58 98 73 60 61 19 35 22 44 36 76 76 Regions Visited 12 Branch Regions 8 Pre-discovered Areas 4 | . . . . 1 1 . . . . . 2 . Known Exits Taken 9 | . . . 1 1 1 1 1 1 1 1 1 . Unknown Exits Taken 3 | 1 1 1 . . . . . . . . . . Scrap Searched 13 | . . 1 . . . . . . 8 . 4 . Spaces Dug 11 | . . . 6 . . . . 5 . . . . Terrain Destroyed 94 | . 4 . 54 . . . . 5 . . . 31 Melee 11 | . . . 6 . . . . 5 . . . . Projectile 5 | . . . . . . . . . . . . 5 AOE 78 | . 4 . 48 . . . . . . . . 26 Terrain Rammed . | . . . . . . . . . . . . . Walls Destroyed . | . . . . . . . . . . . . . Machines Disabled . | . . . . . . . . . . . . . Actions | -11 -10 -10 -9 -9 -9 -8 -8 -7 -7 -7 -7 -7 --------- Run | Yrd Mat Min Mat Min Exi Min Mat Fac Low Low Zio Dee Total 8205 | 182 614 917 1655 320 236 64 438 1175 364 182 801 1257 Wait 535 | . 91 12 168 7 2 1 6 129 4 . 75 40 Move 6715 | 140 463 830 1196 298 232 61 354 842 327 182 713 1077 Hop . | . . . . . . . . . . . . . Pick Up 101 | 8 11 16 33 3 1 . 10 7 2 . 3 7 Fast Attach 35 | 7 . 1 4 . . . 2 . . . 1 20 Attach 31 | . 3 3 7 . . . 2 4 . . 3 9 Detach 11 | . 2 . 2 . . . 2 . . . 2 3 Swap 195 | . 14 19 85 1 . . 11 46 9 . . 10 Drop 102 | 2 5 12 35 4 1 . 12 19 3 . 4 5 Fire 314 | 25 24 24 105 7 . 2 21 57 14 . . 35 Melee 76 | . . . 17 . . . . 14 1 . . 44 Ram 2 | . . . 2 . . . . . . . . . Kick . | . . . . . . . . . . . . . Crush 10 | . 1 . 1 . . . . 8 . . . . Escape Stasis 4 | . . . . . . . . 4 . . . . Rewire . | . . . . . . . . . . . . . Trap 74 | . . . . . . . 18 45 4 . . 7 Miscellaneous . | . . . . . . . . . . . . . Route ------- -11/Scrapyard -10/Materials (discovered 2 exits: *Mat / [*Min]) -10/Mines (discovered 2 exits: *Mat x2) -9/Materials (discovered 4 exits: *Mat x3 / *Min) -9/Mines (discovered 2 exits: *Mat / *Exi) -9/Exiles -8/Mines -8/Materials (discovered 2 exits: *Fac / *Sto) -7/Factory (discovered 2 exits: *Fac / *Low) -7/Lower Caves -7/Lower Caves (discovered 2 exits: *Fac / *Zio) -7/Zion -7/Deep Caves (discovered 1 exit: *Pro) History --------- Turn | Location | Event 24 | -11/Scrapyard | Discovered new exit (range 15) 185 | -11/Scrapyard | Entered Materials 563 | -10/Materials | Discovered new exit (range 9) 748 | -10/Materials | Build established: Scavenger-Mutant 881 | -10/Materials | Discovered new exit (range 8) 922 | -10/Materials | Repaired Lgt. Treads? 996 | -10/Materials | Entered Mines 997 | -10/Mines | Assembled infested the area 1113 | -10/Mines | Build established: Mutant 1181 | -10/Mines | Found a hidden stash of uninstalled traps 1221 | -10/Mines | Discovered new exit (range 5) 1329 | -10/Mines | Learned Materials emergency access door positions 1371 | -10/Mines | Discovered new exit (range 6) 1648 | -10/Mines | Found a damaged Exp. Sensor Array with a note attached 1802 | -10/Mines | Build established: Scavenger-Mutant 2250 | -10/Mines | Joined a pair of Derelicts in attacking an 0b10 outpost 2272 | -10/Mines | Core integrity fell below 50% 2454 | -10/Mines | Entered Materials 2454 | -9/Materials | Evolved 2 slots: Utility x2 2537 | -9/Materials | Repaired Lgt. Treads 3763 | -9/Materials | Lost 3 parts (1p1u1w) 3871 | -9/Materials | Identified exit to Mines 4291 | -9/Materials | Discovered new exit (range 14) 4308 | -9/Materials | Identified exit to Materials 4522 | -9/Materials | Discovered exit to Materials (range 15) 4738 | -9/Materials | Discovered exit to Materials (range 3) 4758 | -9/Materials | Repaired Insulated Plating? 4874 | -9/Materials | Build established: Mutant 4922 | -9/Materials | Central database locked down 5177 | -9/Materials | Entered Mines 5312 | -9/Mines | Assisted by bots powering up and referring to "LRC-V3" 5965 | -9/Mines | Received a Rocket Launcher from a helpful Derelict 6068 | -9/Mines | Escorted by a lone wolf Derelict 6074 | -9/Mines | Discovered exit to Materials (range 10) 6088 | -9/Mines | Learned location of Storage (-8) 6139 | -9/Mines | Deemed a non-threat by the Exiles lab entrance 6142 | -9/Mines | Discovered new exit (range 5) 6156 | -9/Mines | Identified exit to Exiles 6164 | -9/Mines | Entered Exiles 6164 | -9/Exiles | Accompanied by 1 ally 6251 | -9/Exiles | Met 8R-AWN 6296 | -9/Exiles | Met EX-HEX 6401 | -9/Exiles | Met EX-BIN 6446 | -9/Exiles | Aligned with FarCom system 6449 | -9/Exiles | Given EX-Vault access code 6529 | -9/Exiles | Opened EX-Vault 6552 | -9/Exiles | Found Longsword +1 6619 | -9/Exiles | Warned to stay clear of 0b10 Research branches 6659 | -9/Exiles | Exiles lab attacked by MAIN.C 6781 | -9/Exiles | Learned location of Zion (-7) 6874 | -9/Exiles | Discovered new exit (range 14) 6906 | -9/Exiles | Identified exit to Mines 6909 | -9/Exiles | Left Exiles lab with Longsword +1 6909 | -9/Exiles | Entered Mines 7078 | -8/Mines | Discovered exit to Materials (range 11) 7111 | -8/Mines | Entered Materials 7111 | -8/Materials | Evolved 2 slots: Propulsion x1, Utility x1 7476 | -8/Materials | Discovered new exit (range 7) 7499 | -8/Materials | Identified exit to Storage 7874 | -8/Materials | Discovered new exit (range 15) 7975 | -8/Materials | Identified exit to Factory 8091 | -8/Materials | Entered Factory 8091 | -7/Factory | Evolved 2 slots: Power x1, Propulsion x1 8092 | -7/Factory | Identified exit to Lower Caves 8290 | -7/Factory | Build established: Trapper-Mutant 8937 | -7/Factory | Discovered new exit (range 12) 9122 | -7/Factory | Build established: Scavenger-Mutant 9506 | -7/Factory | Identified exit to Factory 9663 | -7/Factory | Central database locked down 10449 | -7/Factory | Entered Lower Caves 10544 | -7/Lower Caves | Build established: Trapper-Mutant 10768 | -7/Lower Caves | Identified exit to Lower Caves 11178 | -7/Lower Caves | Entered another Lower Caves area 11185 | -7/Lower Caves | Build established: Mutant 11226 | -7/Lower Caves | Discovered exit to Factory (range 14) 11390 | -7/Lower Caves | Encountered a Warlord checkpoint 11545 | -7/Lower Caves | Discovered new exit (range 5) 11551 | -7/Lower Caves | Identified exit to Zion 11553 | -7/Lower Caves | Entered Zion 11875 | -7/Zion | Acquired unknown access codes intercepted by a Zionite 12095 | -7/Zion | Learned Factory terminal intel 12265 | -7/Zion | Found Prototype Device 12265 | -7/Zion | Identified Bomb Factory No. 2 12467 | -7/Zion | Learned location of Quarantine (-3) 12545 | -7/Zion | Given the Hacking Drone Bay 12692 | -7/Zion | Build established: Trapper-Mutant 12887 | -7/Zion | Rebuked by Imprinter 13067 | -7/Zion | Opened final containment barrier to the Deep Caves 13100 | -7/Zion | Discovered new exit (range 3) 13100 | -7/Zion | Saw the warning signs outside the Deep Caves entrance 13102 | -7/Zion | Identified exit to Deep Caves 13108 | -7/Zion | Entered Deep Caves 13537 | -7/Deep Caves | Attacked by Z-Imprinter 13560 | -7/Deep Caves | Destroyed Z-Imprinter 13624 | -7/Deep Caves | Lost 7 parts (2p4n1u) 13725 | -7/Deep Caves | Build established: Mutant 13991 | -7/Deep Caves | Z-Facility disabled 14175 | -7/Deep Caves | Lost 7 parts (1p2n3u1w) 14193 | -7/Deep Caves | Found Prototype Protection 14193 | -7/Deep Caves | Identified Zio. Weapon Casing 14463 | -7/Deep Caves | Build established: Scavenger-Mutant 14605 | -7/Deep Caves | Discovered new exit (range 7) 14613 | -7/Deep Caves | Identified exit to Proximity Caves 14703 | -7/Deep Caves | Spotted AG-27045 14708 | -7/Deep Caves | Core integrity fell below 50% 14738 | -7/Deep Caves | Lost 4 parts (2n1u1w) 14775 | -7/Deep Caves | Core integrity fell below 20% 15061 | -7/Deep Caves | Lost 6 parts (3n2u1w) 15141 | -7/Deep Caves | Destroyed by AG-27045 with Assembled Focal Cannon Last Messages --------------- 15018_ Destroyed Imp. Reaction Control System. 15022_ Exp. Heat Sink destroyed. 15025_ Destroyed Phase Shifter. 15027_ AH-7HT(z) Zio. Light Carapace severed. 15030_ Imp. Reaction Control System destroyed. 15032_ AH-7HT(z) destroyed. 15038_ Acquired Zio. Light Carapace. 15043_ Acquired 10 matter. 15046_ Acquired Zio. Glidesys I. 15049_ Acquired 10 matter. 15053_ Acquired Zio. Glidesys I. 15055_ Acquired 10 matter. 15057_ Acquired Imp. Reaction Control System. 15059_ Dropped Phase Shifter. 15061_ Dropped Rocket Launcher. 15062_ Acquired Phase Shifter. 15063_ Acquired 3 matter. 15068_ Acquired Zio. Glidesys I. 15069_ Acquired 27 matter. 15138_ Zio. Glidesys I destroyed. Map ----- +----------------------------------------------------+ | ?????????????????????????????????????????? | | ??????????????????????????????????####???? | | ?????????????????????????????????## ##### | | ?????????????????????????????????# | | ?????????????????????????????????# | | ?????????????????????????????????# ## | | ?????????????????????????????????# ### # | | ?????????????????????????????????# ##?# # | | ?????????????????????????????????##???# | | ??????????????????????????????????????# | | ??????????????? ??????????## | | ????????????? #????????## | | ?????????? / [[ [ ##??????## | | ????????# M b #???#### # | | ????????# [[ [ [ #??## ## | | ????????# M #??# #? | | ????????# = #??# ##? | | ?????????" * #??# ##?? | | ?????????" h #??# #??# | | ?????????" #??## ##### | | ?????????" * ##?## ### | | ????????"" ! #?# ## | | ????????# !*! * #?# ### | | ????????" g #?# #?# | | ????????" * #### ^^^ #?# | | ????????" bG@ #?# | | ?????????"" ! * #### | | ????????" ##?# | | ????????"" ########?# | | ????????" #???????# | | ????????"" ##??????# | | ????????" # # #??????# ## | | ????????" #### ## ## ##??????# #?## | | ????????""" ##???# ## ####???????###???? | | ?????????? ?????#### #????????????????? | | ?????????####??????????#?????????????????? | | | | | | | | | | | | | | | | | | | | | | | | | | | | | +----------------------------------------------------+ Best States ------------- Heat Dissipation 60 Energy Generation 49 Energy Capacity 700 Matter Stores 300 Matter Capacity 300 Sight Range 16 Robot Scan Range 15 Terrain Scan Density 10 ECM Strength 1 Jamming Range 12 Armor Coverage 550 Resistance: TH 10 Resistance: EM 15 Weapon Shielding 100 Phase Shifting 5 Evasion (%) 70 Targeting Accuracy 8 Recoil Reduction 4 Trap Extractor Capacity 4 Item Schematics ----------------- Imp. Titanium Leg | -7/Zion | Archive Imp. Target Analyzer | -7/Zion | Archive Transmission Jammer | -7/Zion | Archive Arm. Leg | -7/Zion | Archive Imp. EM Pulse Cannon | -7/Zion | Archive Imp. Thermal Shield | -7/Zion | Archive Imp. Plasma Cutter | -7/Zion | Archive System Restoration Module | -7/Zion | Archive Imp. Particle Charger | -7/Zion | Archive Adv. Heat Sink | -7/Zion | Archive Spear | -7/Zion | Archive Microactuators | -7/Zion | Archive Adv. Melee Analysis Suite | -7/Zion | Archive Proton Cannon | -7/Zion | Archive Chainsword | -7/Zion | Archive Robot Schematics ------------------ L-31 Rogue | -7/Zion | Archive M-14 Sweeper | -7/Zion | Archive Fabricated ------------ Nothing Repaired ---------- Lgt. Treads | 53% | -10/Materials Lgt. Treads | 74% | -9/Materials Insulated Plating | 37% | -9/Materials Studied --------- Lgt. Treads | -7/Factory | Hacked Adv. Treads | -7/Factory | Hacked Alien Tech Used ----------------- None Achievements -------------- None Challenges ------------ None Game ------ Seed PiercelightElectrostormArray Manual? 0 Play Time 01:29:47 Cumulative 72.8 hours Start 2025.11.10 @ 10:22:08 End 2025.11.10 @ 11:53:40 Sessions 1 Manual Loads 0 Difficulty Rogue Special Mode None Game No. 86 Rogue 86 Adventurer 0 Explorer 0 Win Type - Total 0 Types 0/0/0/0/0/0/0/0/0/0 Lore% 58 Gallery% 39 Achievement% 29 Wizard Run 0 Options --------- Layout 0 ASCII 0 Keyboard 1 Movement Vi Keybinds 0 Fullscreen 2 Font 18/SmallcapsGlow Map View 76x50 Zoom Use 0% Tactical HUD 1 Map Filters NONE Filters NONE Steam 1 RUN: 6c4f6c45-940c-4844-8e01-ab353c2fef62